fUSD/lending_fUSD_20240820
["ID","MTS","AMOUNT","RATE_DAILY","PERIOD"]
[335327962,1724116237557,-500.0,0.00010834,2]
[335327963,1724116237566,-500.0,0.00010834,2]
[335327964,1724116237575,-500.0,0.00010834,2]
[335327965,1724116237584,-595.39,0.00010834,2]
[335327966,1724116237593,-544.87,0.00010834,2]
[335327967,1724116237603,-595.39,0.00010834,2]
[335327968,1724116237611,-544.87,0.00010834,2]
[335327969,1724116237620,-595.39,0.00010834,2]
[335327970,1724116237629,-544.87,0.00010834,2]
[335327971,1724116237638,-595.39,0.00010834,2]
[335327972,1724116237647,-544.87,0.00010834,2]
[335327973,1724116237656,-595.39,0.00010834,2]
[335327974,1724116237665,-544.87,0.00010834,2]
[335327975,1724116237677,-544.87,0.00010834,2]
[335327976,1724116237687,-4604.13,0.00010834,2]
[335327977,1724116237695,-4604.13,0.00010834,2]
[335327978,1724116237704,-4604.13,0.00010834,2]
[335327979,1724116237715,-4604.13,0.00010834,2]
[335327980,1724116237723,-4604.13,0.00010834,2]
[335327981,1724116237732,-4604.13,0.00010834,2]
[335327982,1724116237741,-1706.99,0.00010834,2]
[335327983,1724116237753,-1706.99,0.00010834,2]
[335327984,1724116237763,-1706.99,0.00010834,2]
[335327985,1724116237772,-1706.99,0.00010834,2]
[335327986,1724116237781,-1706.99,0.00010834,2]
[335327987,1724116237790,-1706.99,0.00010834,2]
[335327988,1724116237799,-500.0,0.00010834,2]
[335327989,1724116237808,-500.0,0.00010834,2]
[335327990,1724116237817,-500.0,0.00010834,2]
[335327991,1724116237826,-212.54,0.00010834,2]
[335327993,1724116237835,-1197.06,0.00010834,2]
[335327994,1724116237845,-1197.06,0.00010834,2]
[335327995,1724116237854,-1197.06,0.00010834,2]
[335327996,1724116237863,-1197.06,0.00010834,2]
[335327997,1724116237872,-1197.06,0.00010834,2]
[335327998,1724116237881,-1197.06,0.00010834,2]
[335327999,1724116237890,-1434.11,0.00010834,2]
[335328001,1724116237899,-1434.11,0.00010834,2]
[335328003,1724116237908,-1434.11,0.00010834,2]
[335328004,1724116237917,-1434.11,0.00010834,2]
[335328005,1724116237926,-1434.11,0.00010834,2]
[335328006,1724116237935,-1434.11,0.00010834,2]
[335328007,1724116237943,-1513.64,0.00010834,2]
[335328008,1724116237952,-1513.64,0.00010834,2]
[335328009,1724116237961,-1513.64,0.00010834,2]
[335328011,1724116237970,-1513.64,0.00010834,2]
[335328012,1724116237979,-1513.64,0.00010834,2]
[335328014,1724116237988,-1513.64,0.00010834,2]
[335328015,1724116237996,-500.0,0.00010834,2]
[335328017,1724116238005,-206.22043503,0.00010834,2]
[335328018,1724116238014,-1927.19,0.00010834,2]
[335328019,1724116238024,-1927.19,0.00010834,2]
[335328020,1724116238035,-1927.19,0.00010834,2]
[335328021,1724116238044,-1927.19,0.00010834,2]
[335328022,1724116238053,-1927.19,0.00010834,2]
[335328023,1724116238061,-1927.19,0.00010834,2]
[335328025,1724116238070,-1771.64,0.00010834,2]
[335328026,1724116238078,-1771.64,0.00010834,2]
[335328028,1724116238087,-1771.64,0.00010834,2]
[335328029,1724116238096,-1771.64,0.00010834,2]
[335328030,1724116238105,-1771.64,0.00010834,2]
[335328031,1724116238115,-1771.64,0.00010834,2]
[335328032,1724116238124,-2057.95,0.00010834,2]
[335328033,1724116238133,-2057.95,0.00010834,2]
[335328034,1724116238142,-2057.95,0.00010834,2]
[335328035,1724116238151,-2057.95,0.00010834,2]
[335328036,1724116238160,-2057.95,0.00010834,2]
[335328037,1724116238169,-2057.95,0.00010834,2]
[335328038,1724116238177,-3900.65,0.00010834,2]
[335328039,1724116238186,-3900.65,0.00010834,2]
[335328040,1724116238196,-3900.65,0.00010834,2]
[335328041,1724116238205,-3900.65,0.00010834,2]
[335328042,1724116238215,-3900.65,0.00010834,2]
[335328043,1724116238228,-3900.65,0.00010834,2]
[335328044,1724116238238,-500.0,0.00010834,2]
[335328045,1724116238249,-500.0,0.00010834,2]
[335328046,1724116238258,-500.0,0.00010834,2]
[335328047,1724116238267,-500.0,0.00010834,2]
[335328048,1724116238276,-500.0,0.00010834,2]
[335328049,1724116238286,-500.0,0.00010834,2]
[335328050,1724116238295,-500.0,0.00010834,2]
[335328051,1724116238304,-500.0,0.00010834,2]
[335328063,1724116238435,-500.0,0.00010834,2]
[335328065,1724116238445,-500.0,0.00010834,2]
[335328067,1724116238453,-226.02,0.00010834,2]
[335328069,1724116238463,-500.0,0.00010834,2]
[335328071,1724116238473,-1181.24,0.00010834,2]
[335328073,1724116238482,-1181.24,0.00010834,2]
[335328075,1724116238491,-1181.24,0.00010834,2]
[335328077,1724116238500,-1181.24,0.00010834,2]
[335328079,1724116238508,-1181.24,0.00010834,2]
[335328081,1724116238517,-1181.24,0.00010834,2]
[335328083,1724116238526,-520.83,0.00010834,2]
[335328085,1724116238536,-520.83,0.00010834,2]
[335328087,1724116238545,-520.83,0.00010834,2]
[335328089,1724116238553,-520.83,0.00010834,2]
[335328091,1724116238563,-520.83,0.00010834,2]
[335328092,1724116238572,-520.83,0.00010834,2]
[335328094,1724116238581,-4265.22,0.00010834,2]
[335328096,1724116238590,-4265.22,0.00010834,2]
[335328098,1724116238598,-4265.22,0.00010834,2]
[335328100,1724116238608,-4265.22,0.00010834,2]
[335328102,1724116238617,-4265.22,0.00010834,2]
[335328104,1724116238626,-4265.22,0.00010834,2]
[335328106,1724116238636,-500.0,0.00010834,2]
[335328108,1724116238645,-2353.09,0.00010834,2]
[335328110,1724116238654,-500.0,0.00010834,2]
[335328112,1724116238663,-2353.09,0.00010834,2]
[335328114,1724116238675,-500.0,0.00010834,2]
[335328116,1724116238684,-2353.09,0.00010834,2]
[335328118,1724116238693,-500.0,0.00010834,2]
[335328119,1724116238702,-2353.09,0.00010834,2]
[335328120,1724116238711,-500.0,0.00010834,2]
[335328121,1724116238721,-2353.09,0.00010834,2]
[335328122,1724116238730,-2353.09,0.00010834,2]
[335328123,1724116238739,-500.0,0.00010834,2]
[335328124,1724116238749,-500.0,0.00010834,2]
[335328125,1724116238758,-500.0,0.00010834,2]
[335328126,1724116238767,-500.0,0.00010834,2]
[335328127,1724116238776,-500.0,0.00010834,2]
[335328128,1724116238787,-500.0,0.00010834,2]
[335328129,1724116238796,-8631.75,0.00010834,2]
[335328130,1724116238805,-8631.75,0.00010834,2]
[335328131,1724116238814,-500.0,0.00010834,2]
[335328132,1724116238823,-8631.75,0.00010834,2]
[335328133,1724116238832,-500.0,0.00010834,2]
[335328134,1724116238841,-8631.75,0.00010834,2]
[335328136,1724116238850,-500.0,0.00010834,2]
[335328137,1724116238859,-500.0,0.00010834,2]
[335328139,1724116238868,-8631.75,0.00010834,2]
[335328141,1724116238878,-500.0,0.00010834,2]
[335328143,1724116238887,-8631.75,0.00010834,2]
[335328145,1724116238896,-524.1,0.00010834,2]
[335328147,1724116238905,-524.1,0.00010834,2]
[335328149,1724116238914,-524.1,0.00010834,2]
[335328151,1724116238923,-524.1,0.00010834,2]
[335328153,1724116238934,-2142.9,0.00010834,2]
[335328155,1724116238943,-524.1,0.00010834,2]
[335328157,1724116238952,-2142.9,0.00010834,2]
[335328159,1724116238962,-524.1,0.00010834,2]
[335328161,1724116238971,-2142.9,0.00010834,2]
[335328163,1724116238980,-2142.9,0.00010834,2]
[335328165,1724116238989,-2142.9,0.00010834,2]
[335328166,1724116238997,-2142.9,0.00010834,2]
[335328168,1724116239006,-1971.67,0.00010834,2]
[335328170,1724116239015,-1971.67,0.00010834,2]
[335328172,1724116239024,-1971.67,0.00010834,2]
[335328174,1724116239034,-5618.23,0.00010834,2]
[335328176,1724116239043,-1971.67,0.00010834,2]
[335328178,1724116239052,-5618.23,0.00010834,2]
[335328180,1724116239061,-1971.67,0.00010834,2]
[335328182,1724116239070,-5618.23,0.00010834,2]
[335328184,1724116239079,-5618.23,0.00010834,2]
[335328186,1724116239088,-5618.23,0.00010834,2]
[335328188,1724116239097,-5618.23,0.00010834,2]
[335328190,1724116239106,-773.93,0.00010834,2]
[335328192,1724116239115,-773.93,0.00010834,2]
[335328194,1724116239124,-773.93,0.00010834,2]
[335328196,1724116239134,-773.93,0.00010834,2]
[335328198,1724116239143,-189.23028055,0.00010834,2]
[335328217,1724116239318,-271.75775802,0.00010834,2]
[335328220,1724116239332,-312.94196143,0.00010834,2]
[335328222,1724116239346,-773.93,0.00010834,2]
[335328224,1724116239355,-742.32,0.00010834,2]
[335328226,1724116239365,-742.32,0.00010834,2]
[335328228,1724116239374,-94.78671523,0.00010834,2]
[335328230,1724116239386,-647.53328477,0.00010834,2]
[335328232,1724116239395,-742.32,0.00010834,2]
[335328233,1724116239404,-72.10605796,0.00010834,2]
[335328236,1724116239415,-670.21394204,0.00010834,2]
[335328238,1724116239424,-742.32,0.00010834,2]
[335328240,1724116239433,-500.0,0.00010834,2]
[335328242,1724116239442,-500.0,0.00010834,2]
[335328244,1724116239452,-392.62,0.00010834,2]
[335328246,1724116239461,-603.0,0.00010835,2]
[335328247,1724116239470,-170.60472586,0.00010835,2]
[335328249,1724116239479,-413.29048987,0.00010835,2]
[335328251,1724116239487,-6379.33377744,0.00010835,2]
[335328307,1724116240028,-207.98824654,0.00010735,2]
[335328308,1724116240038,-775.91,0.00010832,2]
[335328311,1724116240048,-500.0,0.00010832,2]
[335328312,1724116240057,-775.91,0.00010833,2]
[335328315,1724116240067,-500.0,0.00010833,2]
[335328317,1724116240076,-179.53628777,0.00010833,2]
[335328320,1724116240088,-394.14575585,0.00010833,2]
[335328322,1724116240099,-202.22795638,0.00010833,2]
[335328324,1724116240109,-81.94159155,0.00010834,2]
[335328326,1724116240120,-418.05840845,0.00010834,2]
[335328328,1724116240130,-447.82916569,0.00010834,2]
[335328331,1724116240142,-328.08083431,0.00010834,2]
[335328333,1724116240151,-500.0,0.00010834,2]
[335328335,1724116240160,-775.91,0.00010834,2]
[335328337,1724116240170,-315.86177063,0.00010834,2]
[335328339,1724116240182,-184.13822937,0.00010834,2]
[335328341,1724116240192,-775.91,0.00010834,2]
[335328343,1724116240201,-500.0,0.00010834,2]
[335328345,1724116240211,-775.91,0.00010834,2]
[335328347,1724116240220,-500.0,0.00010834,2]
[335328348,1724116240230,-775.91,0.00010834,2]
[335328350,1724116240240,-775.91,0.00010834,2]
[335328352,1724116240249,-6011.51736885,0.00010835,2]
[335328354,1724116240261,-2841.5102928,0.00010835,2]
[335328357,1724116240272,-287.83431205,0.00010835,2]
[335328359,1724116240283,-7936.29174422,0.00010835,2]
[335328362,1724116240306,-207.98824654,0.00010818,2]
[335328364,1724116240315,-121769.30273943,0.00010835,2]
[335328366,1724116240327,-2894.2789726,0.00010835,2]
[335328375,1724116240418,-865.05943248,0.00010835,2]
[335328377,1724116240430,-565.75580401,0.00010835,2]
[335328379,1724116240441,-728.09012029,0.00010835,2]
[335328381,1724116240452,-2311.00149682,0.00010835,2]
[335328383,1724116240463,-4561.09431404,0.00010835,2]
[335328385,1724116240475,-935.476,0.00010835,2]
[335328388,1724116240486,-2129.7762363,0.00010835,2]
[335328390,1724116240498,-518.999,0.00010835,2]
[335328392,1724116240510,-28727.91525698,0.00010835,2]
[335328401,1724116240590,-717.49133811,0.00010835,2]
[335328408,1724116240653,-906.8807862,0.00010835,2]
[335328439,1724116240963,544.14,9.862e-05,2]
[335328665,1724116243336,-721.7964081,0.00010832,2]
[335328714,1724116243783,-5660.5335919,0.00010832,2]
[335328717,1724116243793,-10170.6377789,0.00010835,2]
[335328721,1724116243823,-117144.70623093,0.00010835,2]
[335328724,1724116243834,-5400.0,0.00010835,2]
[335328726,1724116243845,-1064.79440349,0.00010835,2]
[335328729,1724116243857,-643.7488155,0.00010835,2]
[335328955,1724116246119,-371.88291753,0.00010831,2]
[335328958,1724116246130,-128.11708247,0.00010831,2]
[335328960,1724116246140,-500.0,0.00010832,2]
[335328962,1724116246149,-696.68291753,0.00010833,2]
[335328964,1724116246160,-5685.64708247,0.00010833,2]
[335328966,1724116246169,-6382.33,0.00010833,2]
[335328968,1724116246179,-500.0,0.00010833,2]
[335328970,1724116246188,-500.0,0.00010833,2]
[335328972,1724116246197,-707.60180154,0.00010834,2]
[335328979,1724116246259,-298.66236919,0.00010834,2]
[335328986,1724116246321,-5376.06582927,0.00010834,2]
[335328988,1724116246331,-6382.33,0.00010834,2]
[335328990,1724116246340,-500.0,0.00010834,2]
[335328992,1724116246349,-6382.33,0.00010834,2]
[335328994,1724116246359,-500.0,0.00010834,2]
[335328996,1724116246368,-6382.33,0.00010834,2]
[335328998,1724116246378,-250.26758224,0.00010834,2]
[335329000,1724116246390,-6132.06241776,0.00010834,2]
[335329002,1724116246399,-500.0,0.00010834,2]
[335329004,1724116246409,-500.0,0.00010834,2]
[335329006,1724116246418,-500.0,0.00010834,2]
[335329008,1724116246428,-6382.33,0.00010834,2]
[335329009,1724116246437,-500.0,0.00010834,2]
[335329011,1724116246447,-308444.87062691,0.00010835,2]
[335329014,1724116246459,-4125.13947338,0.00010835,2]
[335329016,1724116246479,-344.849717,0.00010835,2]
[335329019,1724116246490,-611.967,0.00010835,2]
[335329645,1724116253047,250.0,9.883e-05,2]
[335330247,1724116366938,153.85,9.843e-05,2]
[335330248,1724116451321,176.1,9.822e-05,2]
[335330252,1724116503903,200.0,9.807e-05,2]
[335330277,1724116585977,669.34,8.219e-05,2]
[335330278,1724116689887,5134.61,9.765e-05,2]
[335330279,1724116724609,564.68,9.778e-05,2]
[335330282,1724116904802,165.6,9.781e-05,2]
[335330283,1724116913389,662.51068986,9.899e-05,2]
[335330284,1724116925236,170.12,9.802e-05,2]
[335330285,1724116985553,3531.56724462,9.899e-05,2]
[335330287,1724117045411,155.0,9.899e-05,2]
[335330288,1724117084132,635.87,8.219e-05,2]
[335330292,1724117130216,170309.0,9e-05,2]
[335330376,1724117284251,548.25,9.756e-05,2]
[335330383,1724117385260,3228.58,9.747e-05,2]
[335330384,1724117396213,171.48,9.74e-05,2]
[335330389,1724117414382,240.32,0.000139,31]
[335330390,1724117414428,171.78,9.736e-05,2]
[335330397,1724117432421,-203.0,9.909e-05,2]
[335330398,1724117432431,-400.00078984,9.91e-05,2]
[335330399,1724117432441,-87.82375396,9.988e-05,2]
[335330400,1724117432571,-459.28115575,9.988e-05,2]
[335330401,1724117432580,-300.0,9.999e-05,2]
[335330402,1724117432590,-3723.20253795,9.999e-05,2]
[335330403,1724117432599,-155.36400518,0.0001,2]
[335330404,1724117432609,-1050.0,0.0001,2]
[335330405,1724117432618,-168.19486058,0.0001,2]
[335330406,1724117432630,-796.26776988,0.0001,2]
[335330407,1724117432639,-412.59987064,0.000101,2]
[335330408,1724117432650,-332.96518319,0.000101,2]
[335330409,1724117432659,-178.27,0.00010304,2]
[335330410,1724117432668,-635.87,0.00010465,2]
[335330411,1724117432677,-699.32,0.000105,2]
[335330412,1724117432686,-741.18,0.000105,2]
[335330413,1724117432696,-477.68260099,0.000105,2]
[335330414,1724117432707,-414.53739901,0.000105,2]
[335330415,1724117432717,-103.13260099,0.000105,2]
[335330416,1724117432728,-687.42739901,0.000105,2]
[335330417,1724117432738,-790.56,0.000105,2]
[335330418,1724117432747,-260.0992,0.00010534,2]
[335330419,1724117432756,-733.4882,0.00010633,2]
[335330420,1724117432765,-2363.63,0.00010633,2]
[335330421,1724117432774,-499.99,0.00010633,2]
[335330422,1724117432784,-150.99,0.00010633,2]
[335330423,1724117432793,-349.38708896,0.00010633,2]
[335330424,1724117432802,-150.0,0.00010633,2]
[335330425,1724117432812,-3429.73035759,0.00010634,2]
[335330426,1724117432833,-16369.32727548,0.00010634,2]
[335330427,1724117432845,-2782.55920906,0.00010634,2]
[335330428,1724117432858,-77418.38315787,0.00010634,2]
[335330429,1724117432867,-1220.31,0.00010634,2]
[335330430,1724117432877,-39188.5779,0.00010635,2]
[335330432,1724117432887,-205.09294888,0.00010699,2]
[335330434,1724117432896,-2560.45248797,0.00010699,2]
[335330436,1724117432906,-2066.77992988,0.00010699,2]
[335330437,1724117432917,-152.31,0.00010723,2]
[335330438,1724117432926,-1797.26248,0.0001073,2]
[335330439,1724117432935,-500.0,0.00010731,2]
[335330440,1724117432944,-689.06,0.00010731,2]
[335330441,1724117432953,-500.0,0.00010731,2]
[335330442,1724117432963,-500.0,0.00010731,2]
[335330443,1724117432972,-500.0,0.00010731,2]
[335330444,1724117432981,-500.0,0.00010731,2]
[335330445,1724117432991,-500.0,0.00010731,2]
[335330446,1724117433000,-500.0,0.00010731,2]
[335330447,1724117433009,-500.0,0.00010732,2]
[335330448,1724117433018,-500.0,0.00010732,2]
[335330449,1724117433028,-500.0,0.00010732,2]
[335330450,1724117433038,-500.0,0.00010732,2]
[335330451,1724117433048,-500.0,0.00010732,2]
[335330452,1724117433057,-573.44,0.00010732,2]
[335330453,1724117433067,-1117.57,0.00010732,2]
[335330454,1724117433077,-500.0,0.00010732,2]
[335330455,1724117433087,-500.0,0.00010732,2]
[335330456,1724117433097,-500.0,0.00010732,2]
[335330457,1724117433108,-500.0,0.00010732,2]
[335330458,1724117433117,-500.0,0.00010732,2]
[335330459,1724117433127,-500.0,0.00010732,2]
[335330460,1724117433136,-500.0,0.00010732,2]
[335330461,1724117433146,-3988.96,0.00010732,2]
[335330462,1724117433155,-500.0,0.00010732,2]
[335330463,1724117433164,-1314.64,0.00010732,2]
[335330464,1724117433173,-500.0,0.00010732,2]
[335330465,1724117433183,-500.0,0.00010732,2]
[335330466,1724117433193,-500.0,0.00010732,2]
[335330467,1724117433202,-7784.95,0.00010732,2]
[335330468,1724117433211,-500.0,0.00010732,2]
[335330469,1724117433221,-678.95,0.00010732,2]
[335330470,1724117433230,-678.95,0.00010732,2]
[335330471,1724117433239,-1118.04,0.00010732,2]
[335330472,1724117433248,-500.0,0.00010732,2]
[335330473,1724117433257,-500.0,0.00010732,2]
[335330474,1724117433266,-500.0,0.00010732,2]
[335330475,1724117433275,-729.87,0.00010732,2]
[335330476,1724117433285,-500.0,0.00010732,2]
[335330477,1724117433294,-1606.13,0.00010732,2]
[335330478,1724117433303,-1034.94,0.00010732,2]
[335330479,1724117433313,-1034.94,0.00010732,2]
[335330480,1724117433322,-500.0,0.00010732,2]
[335330481,1724117433331,-2877.58,0.00010732,2]
[335330482,1724117433340,-500.0,0.00010732,2]
[335330483,1724117433349,-2803.24,0.00010732,2]
[335330484,1724117433360,-2803.24,0.00010732,2]
[335330485,1724117433369,-500.0,0.00010732,2]
[335330486,1724117433379,-748.16,0.00010732,2]
[335330487,1724117433388,-1017.58,0.00010732,2]
[335330488,1724117433397,-1017.58,0.00010732,2]
[335330489,1724117433406,-6926.58,0.00010732,2]
[335330490,1724117433415,-500.0,0.00010732,2]
[335330491,1724117433424,-500.0,0.00010732,2]
[335330492,1724117433433,-500.0,0.00010732,2]
[335330493,1724117433444,-896.32,0.00010732,2]
[335330494,1724117433456,-500.0,0.00010732,2]
[335330495,1724117433465,-500.0,0.00010732,2]
[335330496,1724117433474,-630.68,0.00010732,2]
[335330497,1724117433483,-1066.87,0.00010732,2]
[335330498,1724117433494,-1066.87,0.00010732,2]
[335330499,1724117433503,-1204.5,0.00010732,2]
[335330500,1724117433512,-500.0,0.00010732,2]
[335330501,1724117433522,-2665.76,0.00010732,2]
[335330502,1724117433533,-500.0,0.00010732,2]
[335330503,1724117433543,-760.14,0.00010732,2]
[335330504,1724117433552,-1107.28,0.00010732,2]
[335330505,1724117433561,-1107.28,0.00010732,2]
[335330506,1724117433570,-500.0,0.00010732,2]
[335330507,1724117433579,-500.0,0.00010732,2]
[335330508,1724117433588,-1339.31,0.00010732,2]
[335330509,1724117433598,-1286.22,0.00010732,2]
[335330510,1724117433608,-1286.22,0.00010732,2]
[335330511,1724117433617,-1396.6,0.00010732,2]
[335330512,1724117433626,-689.06,0.00010732,2]
[335330513,1724117433635,-500.0,0.00010732,2]
[335330514,1724117433644,-2437.9,0.00010732,2]
[335330515,1724117433654,-2437.9,0.00010732,2]
[335330516,1724117433664,-500.0,0.00010732,2]
[335330517,1724117433673,-1068.75,0.00010732,2]
[335330518,1724117433682,-500.0,0.00010732,2]
[335330519,1724117433691,-542.58593158,0.00010732,2]
[335330520,1724117433700,-500.0,0.00010732,2]
[335330521,1724117433710,-2637.51,0.00010732,2]
[335330522,1724117433719,-500.0,0.00010732,2]
[335330523,1724117433729,-1470.69,0.00010732,2]
[335330524,1724117433738,-1470.69,0.00010732,2]
[335330525,1724117433747,-500.0,0.00010732,2]
[335330526,1724117433756,-500.0,0.00010732,2]
[335330527,1724117433766,-5408.56,0.00010732,2]
[335330528,1724117433775,-5408.56,0.00010732,2]
[335330529,1724117433785,-500.0,0.00010732,2]
[335330530,1724117433794,-354.61457645,0.00010732,2]
[335330531,1724117433804,-3512.65,0.00010732,2]
[335330532,1724117433813,-3512.65,0.00010732,2]
[335330533,1724117433822,-5928.4406,0.00010732,2]
[335330534,1724117433831,-57266.81998735,0.00010733,2]
[335330535,1724117433844,-1066.47244228,0.00010733,2]
[335330536,1724117433863,-1472.97,0.00010733,2]
[335330537,1724117433876,-2612.32441227,0.00010733,2]
[335330545,1724117438391,-500.0,0.00010731,2]
[335330547,1724117438401,-142.85535545,0.00010732,2]
[335330548,1724117438533,-500.0,0.00010731,2]
[335330549,1724117438544,-357.14464455,0.00010732,2]
[335330550,1724117438554,-26571.50660369,0.00010733,2]
[335330551,1724117438567,-471.26757877,0.00010733,2]
[335330552,1724117438578,-287.34726879,0.00010733,2]
[335330553,1724117438590,-1109.20886868,0.00010733,2]
[335330554,1724117438670,-63650.15497159,0.00010733,2]
[335330555,1724117438681,-13500.0,0.00010733,2]
[335330630,1724117439592,439.16,9.844e-05,2]
[335330675,1724117440199,595.62333291,9.747e-05,2]
[335330710,1724117440542,-500.0,0.00010732,2]
[335330713,1724117440552,-500.0,0.00010732,2]
[335330715,1724117440562,-500.0,0.00010732,2]
[335330718,1724117440572,-686.07537265,0.00010733,2]
[335330722,1724117440583,-35902.69645705,0.00010733,2]
[335330744,1724117440780,-29574.57782437,0.00010733,2]
[335330746,1724117440792,-3017.256,0.00010733,2]
[335330748,1724117440804,-2880.424834,0.00010733,2]
[335330750,1724117440815,-1641.30252,0.00010733,2]
[335330756,1724117440865,-1333.52000001,0.00010733,2]
[335330758,1724117440876,-362.572002,0.00010733,2]
[335330760,1724117440887,-1305.55631227,0.00010733,2]
[335331018,1724117444219,-624.42,0.00010731,2]
[335331019,1724117444228,-322.98643778,0.00010732,2]
[335331020,1724117444244,-301.43356222,0.00010732,2]
[335331021,1724117444254,-39.24982241,0.00010732,2]
[335331022,1724117444265,-158.75017759,0.00010732,2]
[335331023,1724117444276,-1543.62,0.00010732,2]
[335331024,1724117444286,-500.0,0.00010732,2]
[335331025,1724117444297,-287.94654423,0.00010733,2]
[335331026,1724117444307,-7500.0,0.00010733,2]
[335331027,1724117444317,-172.22398976,0.00010735,2]
[335331029,1724117444327,-800.2358121,0.00010799,2]
[335331030,1724117444336,-500.0,0.00010822,2]
[335331031,1724117444346,-500.0,0.00010822,2]
[335331032,1724117444355,-172.18954911,0.00010822,2]
[335331033,1724117444365,-500.0,0.00010822,2]
[335331034,1724117444374,-2877.58,0.00010822,2]
[335331035,1724117444384,-748.16,0.00010822,2]
[335331036,1724117444393,-896.32,0.00010822,2]
[335331037,1724117444402,-630.68,0.00010822,2]
[335331038,1724117444411,-1204.5,0.00010822,2]
[335331039,1724117444421,-2665.76,0.00010822,2]
[335331040,1724117444433,-1339.31,0.00010822,2]
[335331041,1724117444443,-1068.75,0.00010822,2]
[335331042,1724117444456,-2637.51,0.00010822,2]
[335331043,1724117444466,-500.0,0.00010822,2]
[335331044,1724117444475,-1543.62,0.00010822,2]
[335331045,1724117444485,-500.0,0.00010823,2]
[335331046,1724117444495,-500.0,0.00010823,2]
[335331047,1724117444504,-800.0,0.00010829,2]
[335331048,1724117444514,-500.0,0.0001083,2]
[335331049,1724117444527,-500.0,0.0001083,2]
[335331050,1724117444538,-573.44,0.0001083,2]
[335331051,1724117444548,-1117.57,0.0001083,2]
[335331052,1724117444558,-500.0,0.0001083,2]
[335331053,1724117444567,-500.0,0.0001083,2]
[335331054,1724117444576,-500.0,0.0001083,2]
[335331055,1724117444585,-500.0,0.0001083,2]
[335331056,1724117444595,-500.0,0.0001083,2]
[335331057,1724117444607,-500.0,0.0001083,2]
[335331058,1724117444616,-3988.96,0.0001083,2]
[335331059,1724117444625,-1314.64,0.0001083,2]
[335331060,1724117444635,-7784.95,0.0001083,2]
[335331061,1724117444643,-1118.04,0.0001083,2]
[335331062,1724117444653,-729.87,0.0001083,2]
[335331063,1724117444662,-500.0,0.0001083,2]
[335331064,1724117444671,-500.0,0.0001083,2]
[335331065,1724117444680,-6926.58,0.0001083,2]
[335331066,1724117444689,-500.0,0.0001083,2]
[335331067,1724117444698,-500.0,0.0001083,2]
[335331068,1724117444708,-500.0,0.0001083,2]
[335331069,1724117444718,-1396.6,0.0001083,2]
[335331070,1724117444727,-500.0,0.0001083,2]
[335331071,1724117444736,-500.0,0.0001083,2]
[335331072,1724117444746,-361.4147484,0.0001083,2]
[335331073,1724117444755,-500.0,0.00010831,2]
[335331074,1724117444764,-500.0,0.00010831,2]
[335331075,1724117444773,-500.0,0.00010831,2]
[335331076,1724117444782,-260.50213865,0.00010831,2]
[335331077,1724117444792,-500.0,0.00010831,2]
[335331078,1724117444803,-760.14,0.00010831,2]
[335331079,1724117444813,-500.0,0.00010832,2]
[335331080,1724117444824,-500.0,0.00010832,2]
[335331081,1724117444833,-500.0,0.00010832,2]
[335331082,1724117444844,-500.0,0.00010832,2]
[335331083,1724117444854,-500.0,0.00010832,2]
[335331084,1724117444865,-573.44,0.00010832,2]